[Event "95th Caplin Hastings Congress"]
[Site "Hastings"]
[Date "2019.12.29"]
[Round "2.18"]
[White "Terentiev, Sergei"]
[Black "White, Stuart A"]
[Result "1-0"]
[ECO "A13"]
[WhiteElo "2292"]
[BlackElo "2106"]
[Annotator "NA"]
[PlyCount "133"]
[EventDate "2019.12.28"]
[EventType "swiss"]
[EventCountry "ENG"]
[SourceTitle "playchess.com"]
[Source "ChessBase"]
[SourceQuality "1"]
[TimeControl "40/6600+30:3000+30"]

1. c4 {[%emt 0:09:33]} e6 {[%emt 0:01:29]} 2. Nf3 {[%emt 0:01:36]} d5 {[%emt 0:00:13]} 3. e3 {[%emt 0:00:28]} Nf6 {[%emt 0:08:24]} 4. a3 {[%emt 0:00:12]} a6 {[%emt 0:04:04]} 5. b3 {[%emt 0:02:38]} c5 {[%emt 0:03:12]} 6. Bb2 {[%emt 0:00:43]} Nc6 {[%emt 0:01:04]} 7. d4 {[%emt 0:00:49]} cxd4 {[%emt 0:05:51]} 8. exd4 {[%emt 0:00:53]} b6 {[%emt 0:04:39]} 9. Nbd2 {[%emt 0:06:14]} Bb7 {[%emt 0:01:59]} 10. Bd3 {[%emt 0:06:04]} Be7 {[%emt 0:04:56]} 11. O-O {[%emt 0:01:10]} O-O {[%emt 0:01:32]} 12. Rc1 {[%emt 0:02:03]} Rc8 {[%emt 0:17:50]} 13. Qe2 {[%emt 0:03:56]} a5 {[%emt 0:01:44]} 14. Rfe1 {[%emt 0:04:04]} Qd6 {[%emt 0:03:19]} 15. c5 {[%emt 0:03:53]} bxc5 {[%emt 0:01:58]} 16. dxc5 {[%emt 0:00:12]} Qf4 {[%emt 0:01:36]} 17. Ne5 {[%emt 0:00:27]} d4 {[%emt 0:10:39]} 18. Nxc6 {[%emt 0:12:16]} Bxc6 {[%emt 0:00:26]} 19. g3 {[%emt 0:00:07]} Qg5 {[%emt 0:02:09]} 20. b4 {[%emt 0:04:08]} axb4 {[%emt 0:06:15]} 21. axb4 {[%emt 0:02:16]} Rb8 {[%emt 0:05:59]} 22. Rc4 {[%emt 0:01:32]} Rfd8 {[%emt 0:08:50]} 23. Bxd4 {[%emt 0:21:20]} Bb5 {[%emt 0:04:25]} 24. Be3 {[%emt 0:02:25]} Qd5 {[%emt 0:02:35]} 25. Rd4 {[%emt 0:00:49]} Bxd3 {[%emt 0:00:54]} 26. Qxd3 {[%emt 0:00:45]} Qa8 {[%emt 0:01:30]} 27. Rxd8+ {[%emt 0:02:47]} Rxd8 {[%emt 0:00:15]} 28. Qc4 {[%emt 0:00:55]} Nd5 {[%emt 0:00:46]} 29. Bd4 {[%emt 0:00:27]} Qa4 {[%emt 0:08:29]} 30. Rb1 {[%emt 0:02:47]} Nc7 {[%emt 0:05:02]} 31. Nf3 {[%emt 0:04:59]} Qc6 {[%emt 0:00:31]} 32. Qe2 {[%emt 0:04:32]} Qb5 {[%emt 0:01:20]} 33. Qe5 {[%emt 0:01:29]} Ne8 {[%emt 0:00:41]} 34. Qf4 {[%emt 0:03:03]} Qd3 {[%emt 0:00:52]} 35. Rb2 {[%emt 0:01:46]} f6 {[%emt 0:00:16]} 36. Qe3 {[%emt 0:05:28]} Qd1+ {[%emt 0:00:21]} 37. Kg2 {[%emt 0:00:02]} e5 {[%emt 0:00:18]} 38. Rd2 {[%emt 0:00:04]} Qa4 {[%emt 0:01:28]} 39. Bc3 {[%emt 0:00:03]} Qc6 {[%emt 0:00:43]} 40. Rxd8 {[%emt 0:00:58]} Bxd8 {[%emt 0:00:04]} 41. Kg1 {[%emt 0:50:37]} Nc7 {[%emt 0:02:15]} 42. Nd2 {[%emt 0:00:00]} Qd5 {[%emt 0:05:02]} 43. Qe4 {[%emt 0:00:00]} Qe6 {[%emt 0:06:06]} 44. Qc4 {[%emt 0:00:00]} Kf7 {[%emt 0:06:20]} 45. Qd3 {[%emt 0:00:00]} Nd5 {[%emt 0:02:23]} 46. b5 {[%emt 0:00:00]} f5 {[%emt 0:03:37]} 47. Qc4 {[%emt 0:00:00]} e4 {[%emt 0:02:28]} 48. b6 {[%emt 0:00:00]} e3 {[%emt 0:02:27]} 49. fxe3 {[%emt 0:00:00]} Qxe3+ {[%emt 0:01:01]} 50. Kg2 {[%emt 0:00:00]} Ke6 {[%emt 0:00:34]} 51. Ba5 {[%emt 0:00:00]} Qa3 {[%emt 0:08:28]} 52. Nb3 {[%emt 0:00:00]} Qb2+ {[%emt 0:02:46]} 53. Kf3 {[%emt 0:00:00]} Qb1 {[%emt 0:02:27]} 54. Ke2 {[%emt 0:00:00]} Qa2+ {[%emt 0:02:59]} 55. Bd2 {[%emt 0:00:00]} Qa8 {[%emt 0:00:40]} 56. Nd4+ {[%emt 0:00:00]} Ke5 {[%emt 0:01:21]} 57. Nf3+ {[%emt 0:00:00]} Ke6 {[%emt 0:01:29]} 58. Ng5+ {[%emt 0:00:00]} Kd7 {[%emt 0:02:07]} 59. Nf3 {[%emt 0:00:00]} Bf6 {[%emt 0:00:33]} 60. Bf4 {[%emt 0:01:39]} Kc6 {[%emt 0:01:22]} 61. Be5 {[%emt 0:00:15]} Kd7 {[%emt 0:02:30]} 62. Bxf6 {[%emt 0:01:57]} gxf6 {[%emt 0:00:04]} 63. Kf2 {[%emt 0:00:10]} Ke6 {[%emt 0:00:37]} 64. Qe2+ {[%emt 0:04:40]} Kf7 {[%emt 0:00:47]} 65. Nd4 {[%emt 0:00:10]} Qc8 {[%emt 0:00:44]} 66. Qe6+ {[%emt 0:00:29]} Qxe6 {[%emt 0:00:10]} 67. Nxe6 {[%emt 0:00:27]} 1-0

[Event "95th Caplin Hastings Congress"]
[Site "Hastings"]
[Date "2019.12.29"]
[Round "2.19"]
[White "Brown, Thomas"]
[Black "Sucikova, Svetlana"]
[Result "1/2-1/2"]
[ECO "E43"]
[WhiteElo "2116"]
[BlackElo "2160"]
[Annotator "NA"]
[PlyCount "61"]
[EventDate "2019.12.28"]
[EventType "swiss"]
[EventCountry "ENG"]
[SourceTitle "playchess.com"]
[Source "ChessBase"]
[SourceQuality "1"]
[TimeControl "40/6600+30:3000+30"]

1. d4 {[%emt 0:09:35]} Nf6 {[%emt 0:10:47]} 2. c4 {[%emt 0:00:41]} e6 {[%emt 0:00:09]} 3. Nc3 {[%emt 0:01:03]} Bb4 {[%emt 0:00:07]} 4. e3 {[%emt 0:01:28]} b6 {[%emt 0:00:18]} 5. Nf3 {[%emt 0:03:54]} Bb7 {[%emt 0:01:50]} 6. Bd3 {[%emt 0:00:09]} Ne4 {[%emt 0:01:14]} 7. Qc2 {[%emt 0:00:37]} f5 {[%emt 0:00:30]} 8. O-O {[%emt 0:00:39]} Bxc3 {[%emt 0:00:20]} 9. bxc3 {[%emt 0:00:08]} O-O {[%emt 0:00:07]} 10. Nd2 {[%emt 0:07:19]} Qh4 {[%emt 0:02:02]} 11. f3 {[%emt 0:04:42]} Nxd2 {[%emt 0:04:24]} 12. Bxd2 {[%emt 0:03:09]} Nc6 {[%emt 0:00:38]} 13. c5 {[%emt 0:08:54]} bxc5 {[%emt 0:04:36]} 14. Rab1 {[%emt 0:00:48]} Rfb8 {[%emt 0:02:25]} 15. e4 {[%emt 0:16:21]} e5 {[%emt 0:28:15]} 16. dxc5 {[%emt 0:10:19]} f4 {[%emt 0:02:16]} 17. Be1 {[%emt 0:09:50]} Qf6 {[%emt 0:06:47]} 18. Bf2 {[%emt 0:02:13]} Nd8 {[%emt 0:03:42]} 19. Rfd1 {[%emt 0:04:38]} Bc6 {[%emt 0:03:54]} 20. Rb4 {[%emt 0:05:18]} Ne6 {[%emt 0:01:50]} 21. Qb3 {[%emt 0:07:46]} Qf8 {[%emt 0:01:11]} 22. Bc4 {[%emt 0:00:50]} Re8 {[%emt 0:03:17]} 23. Bd5 {[%emt 0:03:20]} Kh8 {[%emt 0:05:08]} 24. Bxc6 {[%emt 0:01:05]} dxc6 {[%emt 0:00:06]} 25. Qa4 {[%emt 0:02:49]} Red8 {[%emt 0:01:55]} 26. Rbb1 {[%emt 0:03:20]} Qe8 {[%emt 0:02:17]} 27. Rxd8 {[%emt 0:02:43]} Nxd8 {[%emt 0:00:29]} 28. h3 {[%emt 0:01:24]} h6 {[%emt 0:01:14]} 29. Kh2 {[%emt 0:02:18]} Kh7 {[%emt 0:00:07]} 30. Qa5 {[%emt 0:00:22]} Qd7 {[%emt 0:01:44]} 31. Rb2 {[%emt 0:01:19]} 1/2-1/2

[Event "95th Caplin Hastings Congress"]
[Site "Hastings"]
[Date "2019.12.29"]
[Round "2.20"]
[White "Hutchinson, Paul A"]
[Black "Kantor, Gergely"]
[Result "0-1"]
[ECO "D94"]
[WhiteElo "2112"]
[BlackElo "2541"]
[Annotator "ChessBase"]
[PlyCount "98"]
[EventDate "2019.12.28"]
[EventType "swiss"]
[EventCountry "ENG"]
[SourceTitle "playchess.com"]
[Source "ChessBase"]
[SourceQuality "1"]
[TimeControl "40/6600+30:3000+30"]

1. d4 {[%emt 0:09:30]} Nf6 {[%emt 0:13:21]} 2. Nf3 {[%emt 0:00:07]} d5 {[%emt 0:00:11]} 3. e3 {[%emt 0:00:12]} g6 {[%emt 0:02:56]} 4. c4 {[%emt 0:00:29]} Bg7 {[%emt 0:02:55]} 5. Nc3 {[%emt 0:00:08]} O-O {[%emt 0:00:15]} 6. Be2 {[%emt 0:01:51]} dxc4 {[%emt 0:01:09]} 7. Bxc4 {[%emt 0:00:48]} c5 {[%emt 0:00:55]} 8. O-O {[%emt 0:01:25]} Qc7 {[%emt 0:01:42]} 9. d5 {[%emt 0:02:13]} Bg4 {[%emt 0:02:53]} 10. h3 {[%emt 0:02:10]} Bxf3 {[%emt 0:00:07]} 11. Qxf3 {[%emt 0:00:06]} Nbd7 {[%emt 0:00:05]} 12. Qe2 {[%emt 0:00:10]} Ne8 {[%emt 0:02:05]} 13. e4 {[%emt 0:12:41]} Nd6 {[%emt 0:00:06]} 14. Bf4 {[%emt 0:12:33]} Ne5 {[%emt 0:00:19]} 15. Bxe5 {[%emt 0:03:14]} Bxe5 {[%emt 0:00:09]} 16. Rac1 {[%emt 0:00:50]} a6 {[%emt 0:02:29]} 17. a4 {[%emt 0:00:27]} Rab8 {[%emt 0:03:50]} 18. Bd3 {[%emt 0:11:05]} c4 {[%emt 0:02:16]} 19. Bb1 {[%emt 0:00:09]} b5 {[%emt 0:02:44]} 20. axb5 {[%emt 0:00:07]} axb5 {[%emt 0:00:27]} 21. f4 {[%emt 0:05:39]} Bd4+ {[%emt 0:00:33]} 22. Kh1 {[%emt 0:00:08]} b4 {[%emt 0:08:16]} 23. Nd1 {[%emt 0:01:02]} Rfc8 {[%emt 0:00:34]} 24. Ne3 {[%emt 0:08:13]} c3 {[%emt 0:10:36]} 25. b3 {[%emt 0:06:01]} Bxe3 {[%emt 0:02:49]} 26. Qxe3 {[%emt 0:00:12]} Qc5 {[%emt 0:00:43]} 27. Qd3 {[%emt 0:09:09]} Nb5 {[%emt 0:01:51]} 28. Bc2 {[%emt 0:01:59]} Qd4 {[%emt 0:03:38]} 29. Qf3 {[%emt 0:00:58]} Qd2 {[%emt 0:06:39]} 30. e5 {[%emt 0:01:50]} Nd4 {[%emt 0:01:00]} 31. Qf2 {[%emt 0:13:48]} Rd8 {[%emt 0:04:04]} 32. Rcd1 {[%emt 0:09:16]} Qxf2 {[%emt 0:00:24]} 33. Rxf2 {[%emt 0:00:09]} Rxd5 {[%emt 0:10:13]} 34. Be4 {[%emt 0:00:46]} Rdd8 {[%emt 0:00:16]} 35. Rb1 {[%emt 0:00:10]} Ne6 {[%emt 0:03:39]} 36. f5 {[%emt 0:01:36]} Nc5 {[%emt 0:00:06]} 37. Bc2 {[%emt 0:01:43]} Nd3 {[%emt 0:03:46]} 38. Re2 {[%emt 0:02:46]} gxf5 {[%emt 0:00:13]} 39. e6 {[%emt 0:00:26]} Rb5 {[%emt 0:02:30]} 40. exf7+ {[%emt 0:00:25]} Kxf7 {[%emt 0:00:30]} 41. Rf1 {[%emt 0:51:01]} e6 {[%emt 0:54:55]} 42. g4 {[%emt 0:01:02]} Kf6 {[%emt 0:00:34]} 43. Re4 {[%emt 0:02:12]} Ra5 {[%emt 0:13:25]} 44. Re2 {[%emt 0:00:00]} Rd4 {[%emt 0:00:00]} 45. Re3 {[%emt 0:00:00]} Nf4 {[%emt 0:00:00]} 46. gxf5 {[%emt 0:00:00]} e5 {[%emt 0:00:00]} 47. Rfe1 {[%emt 0:00:00]} Ra2 {[%emt 0:00:00]} 48. Be4 {[%emt 0:00:00]} c2 {[%emt 0:00:00]} 49. Bf3 {[%emt 0:00:00]} Nd3 {[%emt 0:00:00]} 0-1

[Event "95th Caplin Hastings Congress"]
[Site "Hastings"]
[Date "2019.12.29"]
[Round "2.21"]
[White "Comellas Blanchart, Jordi"]
[Black "Gormally, Daniel W"]
[Result "0-1"]
[ECO "B51"]
[WhiteElo "2064"]
[BlackElo "2497"]
[Annotator "ChessBase"]
[PlyCount "58"]
[EventDate "2019.12.28"]
[EventType "swiss"]
[EventCountry "ENG"]
[SourceTitle "playchess.com"]
[Source "ChessBase"]
[SourceQuality "1"]
[TimeControl "40/6600+30:3000+30"]

1. e4 {[%emt 0:09:34]} c5 {[%emt 0:10:06]} 2. Nf3 {[%emt 0:00:11]} d6 {[%emt 0:00:04]} 3. Bb5+ {[%emt 0:00:10]} Nd7 {[%emt 0:00:08]} 4. c3 {[%emt 0:00:22]} Ngf6 {[%emt 0:00:22]} 5. Qe2 {[%emt 0:00:20]} a6 {[%emt 0:00:42]} 6. Ba4 {[%emt 0:00:19]} b5 {[%emt 0:00:18]} 7. Bc2 {[%emt 0:00:13]} Bb7 {[%emt 0:00:03]} 8. d4 {[%emt 0:01:07]} cxd4 {[%emt 0:00:34]} 9. cxd4 {[%emt 0:00:13]} Rc8 {[%emt 0:00:47]} 10. O-O {[%emt 0:02:15]} e6 {[%emt 0:07:30]} 11. Bd3 {[%emt 0:02:32]} Be7 {[%emt 0:00:00]} 12. Bd2 {[%emt 0:03:00]} O-O {[%emt 0:09:03]} 13. a4 {[%emt 0:04:45]} bxa4 {[%emt 0:00:07]} 14. Rxa4 {[%emt 0:02:27]} Qb6 {[%emt 0:03:32]} 15. Nc3 {[%emt 0:26:03]} Nb8 16. Rfa1 {[%emt 0:05:55]} Rfe8 {[%emt 0:00:14]} 17. Bf4 {[%emt 0:09:46]} Qd8 {[%emt 0:05:41]} 18. Nd2 {[%emt 0:06:35]} d5 {[%emt 0:04:56]} 19. exd5 {[%emt 0:13:51]} Nxd5 {[%emt 0:04:39]} 20. Nxd5 {[%emt 0:02:59]} Bxd5 {[%emt 0:00:07]} 21. Nc4 {[%emt 0:05:29]} Bxc4 {[%emt 0:13:20]} 22. Bxc4 {[%emt 0:01:48]} Bf6 {[%emt 0:00:04]} 23. Be5 {[%emt 0:02:26]} Bxe5 {[%emt 0:03:53]} 24. dxe5 {[%emt 0:00:21]} Qg5 {[%emt 0:02:25]} 25. h4 {[%emt 0:02:36]} Qh6 {[%emt 0:02:26]} 26. g3 {[%emt 0:03:01]} a5 {[%emt 0:07:07]} 27. Kg2 {[%emt 0:04:28]} Red8 {[%emt 0:03:21]} 28. Rd1 {[%emt 0:02:19]} g6 {[%emt 0:00:37]} 29. Rxa5 {[%emt 0:01:18]} Rxd1 {[%emt 0:02:01]} 0-1

[Event "95th Caplin Hastings Congress"]
[Site "Hastings"]
[Date "2019.12.29"]
[Round "2.22"]
[White "Yao, Lan"]
[Black "Balaji, Aaravamudhan"]
[Result "1-0"]
[ECO "C55"]
[WhiteElo "2281"]
[BlackElo "2050"]
[Annotator "NA"]
[PlyCount "91"]
[EventDate "2019.12.28"]
[EventType "swiss"]
[EventCountry "ENG"]
[SourceTitle "playchess.com"]
[Source "ChessBase"]
[SourceQuality "1"]
[TimeControl "40/6600+30:3000+30"]

1. e4 {[%emt 0:09:33]} e5 {[%emt 0:09:37]} 2. Nf3 {[%emt 0:00:07]} Nc6 {[%emt 0:00:06]} 3. Bc4 {[%emt 0:00:04]} Nf6 {[%emt 0:00:05]} 4. d3 {[%emt 0:00:04]} Be7 {[%emt 0:00:09]} 5. O-O {[%emt 0:00:11]} O-O {[%emt 0:00:08]} 6. Re1 {[%emt 0:00:03]} d6 {[%emt 0:00:05]} 7. a4 {[%emt 0:00:10]} Na5 {[%emt 0:00:05]} 8. Ba2 {[%emt 0:00:05]} c5 {[%emt 0:00:04]} 9. c3 {[%emt 0:00:23]} Nc6 {[%emt 0:02:12]} 10. Nbd2 {[%emt 0:00:23]} a6 {[%emt 0:01:10]} 11. Nf1 {[%emt 0:04:00]} Be6 {[%emt 0:02:47]} 12. Ng3 {[%emt 0:12:09]} Qd7 {[%emt 0:17:29]} 13. h3 {[%emt 0:09:13]} b5 {[%emt 0:03:49]} 14. Bb1 {[%emt 0:14:25]} d5 {[%emt 0:13:45]} 15. exd5 {[%emt 0:06:56]} Qxd5 {[%emt 0:03:59]} 16. Qe2 {[%emt 0:01:52]} Rfe8 {[%emt 0:13:42]} 17. Ba2 {[%emt 0:07:01]} Qd6 {[%emt 0:03:50]} 18. Bxe6 {[%emt 0:01:00]} Qxe6 {[%emt 0:00:15]} 19. axb5 {[%emt 0:07:02]} axb5 {[%emt 0:00:41]} 20. Rxa8 {[%emt 0:00:04]} Rxa8 {[%emt 0:00:08]} 21. Nxe5 {[%emt 0:00:21]} Nxe5 {[%emt 0:00:21]} 22. Qxe5 {[%emt 0:00:02]} Qxe5 {[%emt 0:00:32]} 23. Rxe5 {[%emt 0:00:02]} Bd6 {[%emt 0:00:01]} 24. Re1 {[%emt 0:00:16]} Bxg3 {[%emt 0:01:17]} 25. fxg3 {[%emt 0:00:16]} Ra1 {[%emt 0:02:20]} 26. Kf2 {[%emt 0:02:16]} Kf8 {[%emt 0:03:22]} 27. Kf3 {[%emt 0:00:30]} c4 {[%emt 0:00:30]} 28. dxc4 {[%emt 0:00:30]} bxc4 {[%emt 0:00:30]} 29. Ke3 {[%emt 0:00:30]} Nd7 {[%emt 0:00:30]} 30. Kd4 {[%emt 0:00:30]} Nb6 {[%emt 0:00:30]} 31. Bd2 {[%emt 0:00:30]} Rxe1 {[%emt 0:00:30]} 32. Bxe1 {[%emt 0:00:30]} Na4 {[%emt 0:00:30]} 33. Kxc4 {[%emt 0:00:30]} Nxb2+ {[%emt 0:00:30]} 34. Kd5 {[%emt 0:00:30]} Na4 {[%emt 0:00:30]} 35. c4 {[%emt 0:00:30]} Nb6+ {[%emt 0:00:30]} 36. Kc5 {[%emt 0:00:30]} Na4+ {[%emt 0:00:30]} 37. Kd6 {[%emt 0:00:30]} Ke8 {[%emt 0:00:30]} 38. c5 {[%emt 0:00:30]} Kd8 {[%emt 0:00:30]} 39. c6 {[%emt 0:00:30]} Nb2 {[%emt 0:00:30]} 40. Ba5+ {[%emt 0:00:30]} Kc8 {[%emt 0:00:30]} 41. Ke7 {[%emt 0:50:30]} Nc4 {[%emt 0:50:30]} 42. Bc3 {[%emt 0:00:30]} f5 {[%emt 0:00:30]} 43. Kf7 {[%emt 0:00:30]} Ne3 {[%emt 0:00:30]} 44. Kxg7 {[%emt 0:00:30]} Nxg2 {[%emt 0:00:30]} 45. Be5 {[%emt 0:00:30]} h5 {[%emt 0:00:30]} 46. h4 {[%emt 1:10:48]} 1-0

[Event "95th Caplin Hastings Congress"]
[Site "Hastings"]
[Date "2019.12.29"]
[Round "2.23"]
[White "Flear, Christine"]
[Black "Stoyanov, Viktor"]
[Result "1/2-1/2"]
[ECO "A49"]
[WhiteElo "2035"]
[BlackElo "2272"]
[Annotator "NA"]
[PlyCount "128"]
[EventDate "2019.12.28"]
[EventType "swiss"]
[EventCountry "ENG"]
[SourceTitle "playchess.com"]
[Source "ChessBase"]
[SourceQuality "1"]
[TimeControl "40/6600+30:3000+30"]

1. d4 {[%emt 0:09:34]} Nf6 {[%emt 0:09:36]} 2. Nf3 {[%emt 0:00:12]} g6 {[%emt 0:00:22]} 3. g3 {[%emt 0:00:20]} b6 {[%emt 0:00:35]} 4. Bg2 {[%emt 0:00:21]} Bb7 {[%emt 0:00:07]} 5. O-O {[%emt 0:01:53]} Bg7 {[%emt 0:00:10]} 6. b3 {[%emt 0:04:49]} O-O {[%emt 0:00:42]} 7. Bb2 {[%emt 0:00:09]} e6 {[%emt 0:01:05]} 8. e3 {[%emt 0:15:33]} d6 {[%emt 0:05:32]} 9. c4 {[%emt 0:02:33]} Nbd7 {[%emt 0:04:22]} 10. Qe2 {[%emt 0:03:30]} Qc8 {[%emt 0:09:34]} 11. Rd1 {[%emt 0:02:43]} Ne4 {[%emt 0:02:32]} 12. Ne1 {[%emt 0:06:38]} f5 {[%emt 0:06:17]} 13. f3 {[%emt 0:06:53]} Ng5 {[%emt 0:01:30]} 14. e4 {[%emt 0:08:20]} fxe4 {[%emt 0:01:30]} 15. fxe4 {[%emt 0:00:07]} e5 {[%emt 0:15:08]} 16. h4 {[%emt 0:07:19]} Nf7 {[%emt 0:06:39]} 17. d5 {[%emt 0:05:30]} Nf6 {[%emt 0:00:33]} 18. Nc3 {[%emt 0:02:01]} Qd8 {[%emt 0:04:55]} 19. Nd3 {[%emt 0:02:48]} Nh5 {[%emt 0:01:26]} 20. Kh2 {[%emt 0:00:53]} Nh6 {[%emt 0:05:29]} 21. Rf1 {[%emt 0:05:50]} Bc8 {[%emt 0:01:24]} 22. Rxf8+ {[%emt 0:00:29]} Qxf8 {[%emt 0:00:09]} 23. Bf3 {[%emt 0:01:33]} Qf7 {[%emt 0:00:24]} 24. Rf1 {[%emt 0:04:58]} Qe7 {[%emt 0:03:55]} 25. Bc1 {[%emt 0:03:16]} Nf4 {[%emt 0:10:59]} 26. Qd2 {[%emt 0:06:09]} Nxd3 {[%emt 0:08:28]} 27. Qxd3 {[%emt 0:00:02]} Ng4+ {[%emt 0:00:25]} 28. Kg1 {[%emt 0:00:41]} h6 {[%emt 0:02:02]} 29. Qe2 {[%emt 0:03:22]} Nf6 {[%emt 0:00:11]} 30. Nd1 {[%emt 0:02:06]} Bh3 {[%emt 0:00:37]} 31. Re1 {[%emt 0:01:01]} Bd7 {[%emt 0:00:08]} 32. Nf2 {[%emt 0:00:45]} Rf8 {[%emt 0:00:15]} 33. Be3 {[%emt 0:00:55]} a5 {[%emt 0:01:51]} 34. a3 {[%emt 0:03:22]} Qf7 {[%emt 0:00:40]} 35. Kg2 {[%emt 0:01:49]} Kh7 {[%emt 0:01:48]} 36. b4 {[%emt 0:03:38]} axb4 {[%emt 0:00:15]} 37. axb4 {[%emt 0:00:01]} Ra8 {[%emt 0:00:31]} 38. c5 {[%emt 0:00:40]} bxc5 {[%emt 0:00:55]} 39. bxc5 {[%emt 0:00:01]} dxc5 {[%emt 0:01:13]} 40. Bxc5 {[%emt 0:00:15]} c6 {[%emt 0:00:47]} 41. dxc6 {[%emt 0:55:56]} Bxc6 {[%emt 0:50:05]} 42. Rb1 {[%emt 0:00:00]} Ra4 {[%emt 0:00:00]} 43. Rb4 {[%emt 0:00:00]} Ra2 {[%emt 0:00:00]} 44. Rb2 {[%emt 0:00:00]} Ra1 {[%emt 0:00:00]} 45. Rb4 {[%emt 0:00:00]} Nd7 {[%emt 0:00:00]} 46. Be3 {[%emt 0:00:00]} Nf8 {[%emt 0:00:00]} 47. Qc4 {[%emt 0:00:00]} Qf6 {[%emt 0:00:00]} 48. Rb6 {[%emt 0:00:00]} Rg1+ {[%emt 0:00:00]} 49. Kxg1 {[%emt 0:00:00]} Qxf3 {[%emt 0:00:00]} 50. Rxc6 {[%emt 0:00:00]} Qxg3+ {[%emt 0:00:00]} 51. Kf1 {[%emt 0:00:00]} Qxe3 {[%emt 0:00:00]} 52. Rc7 {[%emt 0:00:00]} Qf4 {[%emt 0:00:00]} 53. Rb7 {[%emt 0:00:00]} Qf6 {[%emt 0:00:00]} 54. Ke1 {[%emt 0:00:00]} h5 {[%emt 0:00:00]} 55. Rf7 {[%emt 0:00:00]} Qd8 {[%emt 0:00:00]} 56. Ke2 {[%emt 0:00:00]} Kh8 {[%emt 0:00:00]} 57. Qc6 {[%emt 0:00:00]} Kg8 {[%emt 0:00:00]} 58. Ra7 {[%emt 0:00:00]} Qxh4 {[%emt 0:00:00]} 59. Qd5+ {[%emt 0:00:00]} Kh8 {[%emt 0:00:00]} 60. Rf7 {[%emt 0:01:08]} Qg5 {[%emt 0:00:00]} 61. Qd6 {[%emt 0:02:24]} Kg8 {[%emt 0:00:00]} 62. Qd5 {[%emt 0:00:39]} Kh8 {[%emt 0:00:00]} 63. Qd6 {[%emt 0:00:27]} Kg8 {[%emt 0:00:00]} 64. Qd5 {[%emt 0:00:07]} Kh8 {[%emt 0:00:00]} 1/2-1/2

[Event "95th Caplin Hastings Congress"]
[Site "Hastings"]
[Date "2019.12.29"]
[Round "2.24"]
[White "Ratsma, Midas"]
[Black "Rice, Chris B"]
[Result "1/2-1/2"]
[ECO "C42"]
[WhiteElo "2270"]
[BlackElo "2027"]
[Annotator "NA"]
[PlyCount "167"]
[EventDate "2019.12.28"]
[EventType "swiss"]
[EventCountry "ENG"]
[SourceTitle "playchess.com"]
[Source "ChessBase"]
[SourceQuality "1"]
[TimeControl "40/6600+30:3000+30"]

1. e4 {[%emt 0:09:43]} e5 {[%emt 0:10:10]} 2. Nf3 {[%emt 0:00:07]} Nf6 {[%emt 0:01:29]} 3. Nxe5 {[%emt 0:00:24]} d6 {[%emt 0:00:21]} 4. Nf3 {[%emt 0:00:03]} Nxe4 {[%emt 0:00:17]} 5. d4 {[%emt 0:00:05]} d5 {[%emt 0:01:26]} 6. Bd3 {[%emt 0:00:21]} Nc6 {[%emt 0:09:50]} 7. O-O {[%emt 0:01:58]} Be7 {[%emt 0:02:47]} 8. Nbd2 {[%emt 0:02:58]} Nxd2 {[%emt 0:01:33]} 9. Qxd2 {[%emt 0:04:01]} Bg4 {[%emt 0:04:44]} 10. Ne5 {[%emt 0:04:41]} Nxe5 {[%emt 0:00:06]} 11. dxe5 {[%emt 0:00:03]} Qd7 {[%emt 0:00:11]} 12. f4 {[%emt 0:24:57]} Bf5 {[%emt 0:33:46]} 13. Bxf5 {[%emt 0:00:00]} Qxf5 {[%emt 0:00:08]} 14. Qxd5 {[%emt 0:00:00]} Qxc2 {[%emt 0:08:03]} 15. Be3 {[%emt 0:00:00]} c6 {[%emt 0:00:00]} 16. Qf3 {[%emt 0:02:29]} Bc5 {[%emt 0:03:39]} 17. Rf2 {[%emt 0:07:58]} Bxe3 {[%emt 0:00:00]} 18. Qxe3 {[%emt 0:00:04]} Qa4 {[%emt 0:01:31]} 19. b3 {[%emt 0:12:21]} Qa5 {[%emt 0:10:21]} 20. Rd1 {[%emt 0:00:18]} O-O {[%emt 0:00:00]} 21. Rd7 {[%emt 0:10:28]} Rad8 {[%emt 0:09:11]} 22. e6 {[%emt 0:09:34]} fxe6 {[%emt 0:00:00]} 23. Qxe6+ {[%emt 0:00:09]} Kh8 {[%emt 0:00:00]} 24. Qe7 {[%emt 0:02:29]} Rg8 {[%emt 0:00:00]} 25. h3 {[%emt 0:11:34]} Rxd7 {[%emt 0:01:03]} 26. Qxd7 {[%emt 0:00:05]} Qe1+ {[%emt 0:00:52]} 27. Rf1 {[%emt 0:00:08]} Qe3+ {[%emt 0:00:30]} 28. Kh2 {[%emt 0:00:43]} Qe2 {[%emt 0:00:59]} 29. Rf3 {[%emt 0:00:38]} Qa6 {[%emt 0:05:33]} 30. Rg3 {[%emt 0:00:57]} c5 {[%emt 0:04:20]} 31. a4 {[%emt 0:01:02]} h6 {[%emt 0:01:08]} 32. f5 {[%emt 0:01:33]} Qf6 {[%emt 0:05:46]} 33. Qxb7 {[%emt 0:00:37]} Qxf5 {[%emt 0:01:13]} 34. Qxa7 {[%emt 0:00:17]} Qe5 {[%emt 0:00:46]} 35. Qa5 {[%emt 0:04:10]} Rb8 {[%emt 0:01:42]} 36. Qc3 {[%emt 0:00:35]} Qc7 {[%emt 0:00:19]} 37. Qc4 {[%emt 0:03:05]} Rb4 {[%emt 0:00:51]} 38. Qc3 {[%emt 0:03:48]} h5 {[%emt 0:01:33]} 39. Kh1 {[%emt 0:01:05]} Rd4 {[%emt 0:01:27]} 40. Qf3 {[%emt 0:02:43]} Qe5 {[%emt 0:14:23]} 41. Qf8+ {[%emt 0:15:11]} Kh7 {[%emt 0:00:00]} 42. Rf3 {[%emt 0:00:06]} c4 {[%emt 0:00:00]} 43. bxc4 {[%emt 0:03:37]} Rxc4 {[%emt 0:02:41]} 44. Qf5+ {[%emt 0:10:42]} Qxf5 {[%emt 0:00:00]} 45. Rxf5 {[%emt 0:00:03]} Rxa4 {[%emt 0:00:00]} 46. Rxh5+ {[%emt 0:00:05]} Kg6 {[%emt 0:00:00]} 47. Rb5 {[%emt 0:00:07]} Kf6 {[%emt 0:00:00]} 48. Kh2 {[%emt 0:00:10]} g5 {[%emt 0:00:00]} 49. Rb6+ {[%emt 0:03:52]} Kg7 {[%emt 0:00:00]} 50. Kg3 {[%emt 0:00:25]} Rc4 {[%emt 0:00:38]} 51. Ra6 {[%emt 0:00:27]} Rb4 {[%emt 0:00:14]} 52. Kf3 {[%emt 0:00:20]} Rf4+ {[%emt 0:00:59]} 53. Ke3 {[%emt 0:00:14]} Rb4 {[%emt 0:00:10]} 54. Rd6 {[%emt 0:03:43]} Ra4 {[%emt 0:03:55]} 55. Rd4 {[%emt 0:00:00]} Ra3+ {[%emt 0:01:17]} 56. Ke4 {[%emt 0:00:22]} Rg3 {[%emt 0:03:12]} 57. Rd2 {[%emt 0:00:06]} Kg6 {[%emt 0:01:05]} 58. Rf2 {[%emt 0:01:56]} Ra3 {[%emt 0:00:27]} 59. Rd2 {[%emt 0:01:03]} Rg3 {[%emt 0:00:13]} 60. Ra2 {[%emt 0:00:33]} Kf6 {[%emt 0:01:00]} 61. Re2 {[%emt 0:00:19]} Ra3 {[%emt 0:01:17]} 62. Re3 {[%emt 0:00:07]} Ra4+ {[%emt 0:01:01]} 63. Kf3 {[%emt 0:00:06]} Rf4+ {[%emt 0:00:39]} 64. Kg3 {[%emt 0:00:06]} Ra4 {[%emt 0:00:17]} 65. Rb3 {[%emt 0:01:22]} Kf5 {[%emt 0:01:04]} 66. Kf3 {[%emt 0:00:40]} Rf4+ {[%emt 0:00:53]} 67. Ke3 {[%emt 0:00:13]} Re4+ {[%emt 0:00:35]} 68. Kf2 {[%emt 0:00:22]} Ra4 {[%emt 0:00:28]} 69. g4+ {[%emt 0:00:21]} Kg6 {[%emt 0:02:30]} 70. Kg3 {[%emt 0:00:57]} Ra6 {[%emt 0:01:01]} 71. h4 {[%emt 0:00:08]} gxh4+ {[%emt 0:00:10]} 72. Kxh4 {[%emt 0:00:03]} Rc6 {[%emt 0:02:22]} 73. Rb8 {[%emt 0:00:13]} Ra6 {[%emt 0:00:34]} 74. Rg8+ {[%emt 0:00:25]} Kh7 {[%emt 0:01:07]} 75. Rg5 {[%emt 0:00:56]} Kh6 {[%emt 0:01:26]} 76. Rc5 {[%emt 0:00:19]} Kg6 {[%emt 0:00:34]} 77. Rc4 {[%emt 0:01:33]} Rb6 {[%emt 0:00:24]} 78. Kg3 {[%emt 0:00:59]} Ra6 {[%emt 0:01:02]} 79. Rc5 {[%emt 0:04:36]} Rb6 {[%emt 0:01:41]} 80. Kh4 {[%emt 0:00:05]} Ra6 {[%emt 0:00:30]} 81. Rg5+ {[%emt 0:00:10]} Kh6 {[%emt 0:00:52]} 82. Rg8 {[%emt 0:00:04]} Kh7 {[%emt 0:00:23]} 83. Rb8 {[%emt 0:00:39]} Kg6 {[%emt 0:00:12]} 84. Rb5 {[%emt 0:01:50]} 1/2-1/2